bitfinex-derivatives/quotes_BNBF0:USTF0_20250425
["timestamp","ask_amount","ask_price","bid_price","bid_amount"]
[1745600085352,1.53538421,607.33,605.28,0.28712634]
[1745600085353,1.53538421,607.33,605.3,0.30309592]
[1745600085555,1.53538421,607.33,605.31,0.30309592]
[1745600085853,1.53538421,607.33,605.3,1.509]
[1745600086058,1.53538421,607.33,605.31,2.421]
[1745600086454,0.28712634,607.33,605.31,2.421]
[1745600086754,0.28712634,607.33,605.31,3.735]
[1745600088358,1.24825787,607.5,605.32,0.3030883]
[1745600088657,0.28711687,607.32,605.32,0.3030883]
[1745600088957,1.24825787,607.5,605.32,0.3030883]
[1745600089657,1.24825787,607.5,605.31,3.735]
[1745600089857,0.28710029,607.49,605.32,0.30308648]
[1745600091052,1.24825787,607.42,605.32,0.30308648]
[1745600091257,1.24825787,607.42,605.33,0.30308677]
[1745600091458,0.28710976,607.41,605.32,0.30308677]
[1745600091652,0.28710976,607.41,605.33,0.30308677]
[1745600091856,0.28710976,607.41,605.34,0.30308677]
[1745600092053,0.28710976,607.41,605.31,3.735]
[1745600092359,0.28710976,607.41,605.32,0.30308677]
[1745600093159,1.24825787,607.28,605.32,0.30308677]
[1745600094758,0.28712516,607.27,605.32,0.30308677]
[1745600094959,1.24825787,607.23,605.32,0.30308677]
[1745600095663,1.24825787,607.23,605.31,4.02212516]
[1745600095865,1.24825787,607.23,605.32,0.30308648]
[1745600097365,1.24825787,607.23,605.33,0.30308675]
[1745600097566,1.24825787,607.23,605.32,0.30308675]
[1745600097865,0.28712279,607.22,605.33,0.30308675]
[1745600098061,0.28712279,607.22,605.31,4.02212279]
[1745600098062,1.24825787,606.97,605.32,0.30308675]
[1745600098268,1.24825787,606.97,605.33,0.30308675]
[1745600098462,1.24825787,606.97,605.32,0.30308675]
[1745600098765,1.24825787,606.97,605.33,0.30308675]
[1745600099065,1.24825787,606.97,605.32,0.30308675]
[1745600099265,1.24825787,606.97,605.31,1.59512279]
[1745600099266,1.24825787,606.97,605.33,0.30308675]
[1745600099465,1.24825787,606.97,605.31,1.59512279]
[1745600099466,1.24825787,606.97,605.32,0.30308675]
[1745600099668,1.24825787,606.97,605.33,0.30308675]
[1745600099965,1.24825787,606.97,605.34,0.30308675]
[1745600100167,1.24825787,606.97,605.32,0.30308675]
[1745600100367,1.24825787,606.97,605.31,1.308]
[1745600100560,1.24825787,606.97,605.32,0.30308667]
[1745600101368,1.24825787,607.07,605.32,0.30308667]
[1745600101570,1.24825787,607.07,605.33,1.373]
[1745600101864,1.24825787,607.07,605.34,0.30308667]
[1745600102872,1.24825787,607.07,605.35,1.141]
[1745600103165,1.24825787,607.07,605.36,0.30308071]
[1745600104371,0.287137,607.1,605.36,0.30308071]
[1745600105771,0.287137,607.1,605.35,1.141]
[1745600106174,1.24825787,607.17,605.35,1.141]
[1745600106469,0.28712516,607.1,605.35,1.141]
[1745600109276,1.24825787,607.32,605.35,1.141]
[1745600109571,0.28710739,607.1,605.35,1.141]
[1745600110077,1.24825787,607.23,605.35,1.141]
[1745600111271,0.28712753,607.22,605.35,1.141]
[1745600112179,1.24825787,607.23,605.35,1.141]
[1745600112479,0.28712753,607.21,605.35,1.141]
[1745600113382,1.24825787,607.14,605.35,1.141]
[1745600115083,0.28712753,607.21,605.35,1.141]
[1745600117786,0.28712753,607.21,605.36,0.3030935]
[1745600118186,1.24825787,607.25,605.36,0.3030935]
[1745600118387,1.24825787,607.06,605.37,1.294]
[1745600118590,1.24825787,607.06,605.38,0.3030935]
[1745600118785,1.24825787,607.06,605.37,1.294]
[1745600119590,1.24825787,607.06,605.38,0.30308464]
[1745600119792,1.24825787,607.06,605.37,1.294]
[1745600121091,1.24825787,607.06,605.38,1.411]
[1745600121391,1.24825787,607.37,605.38,1.411]
[1745600121587,0.28713345,607.11,605.38,1.411]
[1745600121788,1.24825787,607.37,605.38,1.411]
[1745600123395,1.24825787,607.36,605.39,1.28]
[1745600123693,1.53535342,607.36,605.39,1.28]
[1745600124189,1.24825787,607.36,605.39,1.28]
[1745600124593,0.28709555,607.35,605.39,1.28]
[1745600127194,1.24825787,607.36,605.39,1.28]
[1745600127390,1.24825787,607.36,605.4,0.3030749]
[1745600127695,0.28709555,607.34,605.4,0.3030749]
[1745600128598,1.24825787,607.1,605.4,0.3030749]
[1745600130398,1.24825787,607.1,605.39,2.32405207]
[1745600130693,1.24825787,607.1,605.39,2.61118789]
[1745600130899,0.28713582,607.09,605.39,2.61118789]
[1745600131994,1.24825787,606.99,605.39,1.56713582]
[1745600133195,1.24825787,606.99,605.39,1.28]
[1745600133700,1.24825787,606.99,605.39,1.56714885]
[1745600135698,0.28714885,607.07,605.39,1.56714885]
[1745600136200,1.24825787,607.12,605.39,1.28]
[1745600136498,0.28713345,607.07,605.39,1.56713345]
[1745600139202,1.24825787,607.19,605.39,1.28]
[1745600139498,0.28713227,607.06,605.4,0.974]
[1745600139800,1.24825787,607.19,605.4,0.974]
[1745600140700,1.24825787,607.22,605.41,0.30308046]
[1745600141303,0.28712753,607.21,605.41,0.30308046]
[1745600141504,0.28712753,607.21,605.42,0.30308014]
[1745600141799,0.28712753,607.21,605.43,0.30308014]
[1745600141998,0.28712753,607.21,605.41,0.30308018]
[1745600142199,1.24825787,607.22,605.4,0.974]
[1745600142399,1.24825787,607.22,605.41,0.30308018]
[1745600142702,0.28712753,607.21,605.41,0.30308018]
[1745600143808,1.24825787,607.12,605.41,0.30308018]
[1745600144407,1.24825787,607.12,605.4,0.974]
[1745600144807,1.24825787,607.12,605.41,0.30309027]
[1745600145710,0.28713937,607.11,605.41,0.30309027]
[1745600145903,0.28713937,607.11,605.4,1.26113937]
[1745600146415,1.24825787,607.0,605.4,1.26113937]
[1745600147517,1.24825787,607.0,605.4,2.49313937]
[1745600149714,0.28713937,607.11,605.4,2.49313937]
[1745600151216,1.24825787,607.2,605.4,2.206]
[1745600151515,0.287137,607.1,605.4,2.493137]
[1745600151716,1.24825787,607.2,605.4,2.493137]
[1745600152721,1.24825787,607.44,605.4,2.493137]
[1745600153620,0.28710858,607.43,605.4,2.493137]
[1745600154221,1.24825787,607.44,605.4,2.206]
[1745600154716,1.24825787,607.44,605.4,2.49310858]
[1745600154717,0.28710858,607.43,605.4,2.49310858]
[1745600155220,0.28710858,607.43,605.4,3.55810858]
[1745600157217,1.24825787,607.54,605.4,3.271]
[1745600157716,0.28709673,607.53,605.4,3.55809673]
[1745600160022,1.5353546,607.53,605.4,3.55809673]
[1745600160222,1.24825787,607.53,605.4,3.271]
[1745600160625,0.28709792,607.52,605.4,3.271]
[1745600160818,0.28709792,607.52,605.4,3.55809792]
[1745600162117,1.24825787,607.53,605.4,3.271]
[1745600162523,1.24825787,607.38,605.4,3.271]
[1745600168029,1.24825787,607.12,605.4,3.271]
[1745600168232,1.24825787,607.12,605.4,4.627]
[1745600170833,1.24825787,607.11,605.4,4.627]
[1745600173136,1.24825787,607.11,605.41,0.30308921]
[1745600173335,1.24825787,607.11,605.4,4.627]
[1745600173534,1.24825787,607.11,605.4,2.588]
[1745600173835,1.24825787,607.13,605.4,2.588]
[1745600174034,1.24825787,607.13,605.41,0.30309123]
[1745600174429,1.24825787,607.13,605.4,2.588]
[1745600176134,1.24825787,607.05,605.4,2.588]
[1745600176430,1.24825787,607.05,605.4,5.404]
[1745600179342,1.24825787,607.1,605.4,5.404]
[1745600182244,1.24825787,607.09,605.4,5.404]
[1745600182841,1.24825787,607.09,605.4,5.69114293]
[1745600184243,1.24825787,607.09,605.4,5.404]
[1745600184542,0.28714293,607.08,605.4,5.69114293]
[1745600185143,1.24825787,607.05,605.4,5.69114293]
[1745600185642,1.24825787,607.05,605.41,0.30308873]
[1745600185846,1.24825787,607.05,605.4,5.69114293]
[1745600187145,1.24825787,607.05,605.4,5.404]
[1745600187445,0.28716425,607.04,605.4,5.69116425]
[1745600190142,1.24825787,607.09,605.4,5.404]
[1745600190441,0.28715951,607.03,605.4,5.69115951]
[1745600193247,1.24825787,607.12,605.4,5.404]
[1745600193651,1.24825787,607.21,605.4,5.404]
[1745600193948,0.28715596,607.11,605.4,5.69115596]
[1745600194148,1.24825787,607.21,605.4,5.69115596]
[1745600194852,0.28715477,607.2,605.4,5.69115596]
[1745600195153,0.28715477,607.2,605.4,5.404]
[1745600196253,1.24825787,607.21,605.4,5.404]
[1745600196552,0.28716662,607.19,605.4,5.404]
[1745600196852,1.24825787,607.18,605.4,5.404]
[1745600199755,1.24825787,606.95,605.4,5.404]
[1745600201955,1.24825787,606.88,605.4,5.404]
[1745600202751,1.5354636,606.88,605.4,5.404]
[1745600204252,1.24825787,606.81,605.4,5.404]
[1745600207357,0.28719743,606.95,605.4,5.404]
[1745600208258,1.24825787,607.17,605.4,5.404]
[1745600208762,0.28715477,607.16,605.4,5.404]
[1745600209655,1.53541264,607.16,605.4,5.404]
[1745600211262,1.24825787,607.16,605.4,5.404]
[1745600211763,0.28715359,607.15,605.4,5.404]
[1745600213161,1.53541146,607.15,605.4,5.404]
[1745600214166,1.24825787,607.15,605.4,5.404]
[1745600214466,0.28713582,607.14,605.4,5.404]
[1745600217163,1.24825787,607.25,605.4,5.404]
[1745600217468,0.28713582,607.13,605.4,5.404]
[1745600217770,1.24825787,607.25,605.4,5.404]
[1745600218673,1.24825787,607.4,605.4,5.404]
[1745600219671,0.28711805,607.39,605.4,5.404]
[1745600221273,1.24825787,607.2,605.4,5.404]
[1745600223774,0.28715122,607.19,605.4,5.404]
[1745600229281,1.24825787,607.32,605.4,5.404]
[1745600229580,0.28712753,607.18,605.4,5.404]
[1745600229878,1.24825787,607.32,605.4,5.404]
[1745600230879,0.28712753,607.31,605.4,5.404]
[1745600232175,1.24825787,607.32,605.4,5.404]
[1745600232481,0.28712753,607.3,605.4,5.404]
[1745600234281,1.24825787,607.26,605.4,5.404]
[1745600235581,0.28712516,607.25,605.4,5.404]
[1745600237983,0.28712516,607.25,605.4,5.39526229]
[1745600238282,1.24825787,607.26,605.4,4.172]
[1745600238483,1.24825787,607.21,605.41,0.30308347]
[1745600238684,1.24825787,607.21,605.4,4.172]
[1745600238883,1.24825787,607.21,605.39,0.28710858]
[1745600239087,1.24825787,607.21,605.4,0.30308532]
[1745600239889,1.24825787,607.21,605.39,0.28710858]
[1745600240089,1.24825787,607.21,605.4,0.30309272]
[1745600240490,1.24825787,607.21,605.39,0.28710858]
[1745600241189,1.24825787,607.21,605.14,1.04405207]
[1745600241388,1.24825787,607.21,605.15,0.30309272]
[1745600241689,0.2871453,607.2,605.39,0.2871453]
[1745600241884,0.2871453,607.2,605.24,1.04405207]
[1745600241885,1.24825787,607.1,605.24,1.04405207]
[1745600242084,1.24825787,607.1,605.25,0.30309243]
[1745600242386,1.24825787,607.1,605.25,1.64409243]
[1745600242591,1.24825787,607.1,605.26,0.30309243]
[1745600244494,1.53540317,607.1,605.26,0.30309243]
[1745600245494,1.24825787,606.94,605.26,0.30309243]
[1745600246089,1.24825787,606.94,605.25,1.341]
[1745600246288,1.24825787,606.94,605.26,0.30309577]
[1745600247698,1.24825787,606.94,605.25,1.341]
[1745600247893,1.24825787,606.94,605.27,0.30309484]
[1745600248098,1.24825787,606.94,605.28,0.30309484]
[1745600248294,1.24825787,606.94,605.29,0.30309484]
[1745600248499,1.24825787,606.97,605.26,0.30309484]
[1745600248699,1.24825787,606.97,605.27,0.30309484]
[1745600248895,1.24825787,606.97,605.28,0.30309484]
[1745600249195,1.24825787,606.97,605.29,0.3031136]
[1745600249399,1.24825787,606.97,605.26,0.3031136]
[1745600249695,1.24825787,606.97,605.27,0.3031136]
[1745600249899,1.24825787,606.97,605.28,0.3031136]
[1745600250098,1.24825787,606.97,605.26,0.3031136]
[1745600250300,1.24825787,606.97,605.27,0.3031136]
[1745600250498,1.24825787,606.97,605.26,0.3031136]
[1745600250703,1.24825787,606.97,605.25,1.62817729]
[1745600251006,0.28717729,607.03,605.25,1.62817729]
[1745600252304,0.28717729,607.03,605.26,0.30313125]
[1745600253305,1.24825787,607.18,605.26,0.30313125]
[1745600253701,0.28715951,607.17,605.25,1.62815951]
[1745600253901,0.28715951,607.17,605.26,0.30313183]
[1745600256306,1.24825787,607.22,605.26,0.30313183]
[1745600256701,0.28715477,607.21,605.26,0.30313183]
[1745600257006,1.24825787,607.16,605.26,0.30313183]
[1745600259308,1.24825787,607.05,605.26,0.30313183]
[1745600259905,1.24825787,607.05,605.27,0.30313748]
[1745600260102,1.24825787,607.05,605.25,1.62816188]
[1745600260306,1.24825787,607.05,605.26,0.30313748]
[1745600261311,1.24825787,607.09,605.26,0.30313748]
[1745600262612,0.28717018,607.08,605.26,0.30313748]
[1745600264014,1.24825787,606.97,605.26,0.30313748]
[1745600265014,1.24356685,606.97,605.26,0.30313748]
[1745600266413,1.24356685,606.97,605.25,1.62817018]
[1745600266615,0.28717018,607.08,605.26,0.30313256]
[1745600266913,0.28717018,607.08,605.27,1.44]
[1745600268415,2.12377208,607.1,605.27,1.44]
[1745600269114,2.12377208,607.1,605.27,2.451]
[1745600269416,2.12377208,607.88,605.27,2.451]
[1745600269417,2.12377208,607.32,605.27,2.451]
[1745600269709,0.28714056,607.31,605.27,2.451]
[1745600271318,2.12377208,607.32,605.27,2.451]
[1745600271617,0.28713345,607.3,605.27,2.451]
[1745600272221,2.41090553,607.3,605.27,2.451]
[1745600274021,2.41090553,607.3,605.28,0.30306692]
[1745600274220,2.41090553,607.3,605.27,2.451]
[1745600274420,2.12377208,607.3,605.27,2.451]
[1745600274621,0.2871145,607.29,605.27,2.451]
[1745600275219,0.2871145,607.29,605.28,0.30306603]
[1745600275523,0.2871145,607.29,605.27,2.451]
[1745600275727,0.2871145,607.29,605.28,0.30306223]
[1745600277025,0.2871145,607.29,605.27,2.451]
[1745600277224,0.2871145,607.29,605.28,0.30305831]
[1745600277417,2.12377208,607.63,605.28,0.30305831]
[1745600277720,0.28707068,607.62,605.28,0.30305831]
[1745600279527,0.28707068,607.62,605.28,1.80305831]
[1745600279725,0.28707068,607.62,605.29,0.30305831]
[1745600280120,0.28707068,607.62,605.28,1.5]
[1745600280323,2.12377208,607.68,605.29,0.30307753]
[1745600280727,0.28707779,607.67,605.29,0.30307753]
[1745600281323,0.28707779,607.67,605.28,1.78707779]
[1745600281527,0.28707779,607.67,605.29,0.30307589]
[1745600281927,2.12377208,607.55,605.29,0.30307589]
[1745600282829,2.12377208,607.55,605.28,1.78707779]
[1745600283028,2.12377208,607.55,605.29,0.30306529]
[1745600283723,0.28709318,607.54,605.29,0.30306529]
[1745600286230,2.12377208,607.56,605.29,0.30306529]
[1745600286531,0.28708252,607.53,605.28,1.78708252]
[1745600286732,0.28708252,607.53,605.29,0.30306173]
[1745600288228,2.12377208,607.38,605.29,0.30306173]
[1745600288732,2.12377208,607.38,605.29,1.36706173]
[1745600288933,2.12377208,607.38,605.3,0.30306173]
[1745600289634,0.28710266,607.37,605.3,0.30306173]
[1745600293637,0.28710266,607.37,605.29,1.35110266]
[1745600293834,0.28710266,607.37,605.3,0.30306159]
[1745600295232,0.28710266,607.37,605.29,1.35110266]
[1745600295432,2.12377208,607.43,605.3,0.30306123]
[1745600295637,0.28710384,607.36,605.3,0.30306123]
[1745600296739,0.28710384,607.36,605.29,1.35110384]
[1745600296934,0.28710384,607.36,605.3,0.30306503]
[1745600298339,0.28710384,607.36,605.29,1.35110384]
[1745600298340,2.12377208,607.58,605.29,1.064]
[1745600298539,2.12377208,607.58,605.3,0.3030741]
[1745600298743,0.28710502,607.57,605.29,2.50710266]
[1745600299241,2.12377208,607.48,605.29,2.50710266]
[1745600299434,1.25797529,607.34,605.29,2.50710266]
[1745600301342,1.25797529,607.34,605.29,2.22]
[1745600301641,1.25797529,607.07,605.29,2.22]
[1745600301842,1.25797529,607.07,605.29,2.50714648]
[1745600303042,1.25797529,607.07,605.29,3.82414648]
[1745600304242,1.25797529,607.07,605.29,3.537]
[1745600304644,0.28719151,607.06,605.29,3.82419151]
[1745600309052,0.28719151,607.06,605.29,5.25919151]
[1745600310352,1.25797529,607.08,605.29,4.972]
[1745600310648,0.28719032,607.05,605.29,5.25919032]
[1745600313354,1.25797529,607.06,605.29,4.972]
[1745600313655,1.25797529,607.14,605.29,4.972]
[1745600313855,0.28719269,607.05,605.29,5.25919269]
[1745600314054,1.25797529,607.14,605.29,5.25919269]
[1745600314856,0.28718321,607.13,605.29,5.25919269]
[1745600315956,1.5451585,607.13,605.29,5.25919269]
[1745600316356,1.25797529,607.13,605.29,4.972]
[1745600316656,0.2871844,607.12,605.29,5.2591844]
[1745600319458,1.25797529,607.25,605.29,4.972]
[1745600319658,0.28717018,607.11,605.29,5.25917018]
[1745600319960,1.25797529,607.25,605.29,5.25917018]
[1745600321662,1.54514547,607.24,605.29,5.25917018]
[1745600322360,1.25797529,607.24,605.29,4.972]
[1745600322656,0.28717136,607.23,605.29,4.972]
[1745600323556,0.28717136,607.23,605.29,5.25917136]
[1745600324765,1.25797529,607.19,605.29,5.25917136]
[1745600325360,1.25797529,607.19,605.29,4.972]
[1745600325662,0.28717729,607.18,605.29,5.25917729]
[1745600326763,1.25797529,606.98,605.29,5.25917729]
[1745600329768,1.25797529,607.17,605.29,5.25917729]
[1745600331366,1.25797529,607.17,605.29,4.972]
[1745600331764,0.28717966,607.16,605.29,5.25917966]
[1745600334371,1.25797529,607.17,605.29,4.972]
[1745600334566,1.25797529,607.02,605.29,4.972]
[1745600334770,1.25797529,607.02,605.29,5.25917966]
[1745600337367,1.25797529,607.02,605.29,4.972]
[1745600337873,2.12377208,607.75,605.29,4.972]
[1745600337874,1.25797529,606.83,605.29,5.25919743]
[1745600340375,1.25797529,606.83,605.29,4.972]
[1745600340571,1.25797529,606.81,605.29,4.972]
[1745600340869,1.25797529,606.81,605.29,5.25921639]
[1745600342876,1.25797529,606.83,605.29,5.25921639]
[1745600343676,1.25797529,606.83,605.29,4.972]
[1745600343974,1.25797529,606.83,605.29,5.25921402]
[1745600344375,1.25797529,606.83,605.3,0.30314499]
[1745600345575,1.25797529,606.83,605.29,0.28721402]
[1745600346476,1.25797529,606.83,604.87,1.04405207]
[1745600346477,1.25797529,606.9,605.23,1.04405207]
[1745600346877,1.25797529,606.9,605.29,0.2872081]
[1745600347474,1.25797529,606.9,605.29,1.8392081]
[1745600347671,1.25797529,606.9,605.29,3.2082081]
[1745600347873,1.25797529,606.9,605.29,4.6462081]
[1745600348775,1.25797529,606.9,605.29,6.1812081]
[1745600349379,1.25797529,606.9,605.29,5.894]
[1745600349675,1.25797529,606.9,605.29,6.18119032]
[1745600350079,0.28719032,606.99,605.29,6.18119032]
[1745600352382,1.25797529,607.08,605.29,5.894]
[1745600352683,0.28716662,606.99,605.29,6.18116662]
[1745600352979,1.25797529,607.08,605.29,6.18116662]
[1745600354484,1.25797529,607.17,605.29,6.18116662]
[1745600354684,0.28716899,607.07,605.29,6.18116662]
[1745600355085,1.25797529,607.17,605.29,6.18116662]
[1745600355286,0.28715833,607.06,605.29,6.18116662]
[1745600355488,1.25797529,607.17,605.29,5.894]
[1745600356588,1.25797529,607.17,605.29,6.18115833]
[1745600356787,1.25797529,607.19,605.29,6.18115833]
[1745600357683,0.28715596,607.18,605.29,6.18115833]
[1745600358388,1.25797529,607.19,605.29,5.894]
[1745600358688,1.25797529,607.19,605.29,6.18115596]
[1745600358689,0.28715596,607.17,605.29,6.18115596]
[1745600359289,1.25797529,607.16,605.29,6.18115596]
[1745600361390,1.25797529,607.16,605.29,5.894]
[1745600361686,0.28715951,607.15,605.29,6.18115951]
[1745600364390,1.25797529,607.22,605.29,5.894]
[1745600364691,0.28715241,607.14,605.29,6.18115241]
[1745600364892,1.25797529,607.09,605.29,6.18115241]
[1745600365992,0.28716781,607.08,605.29,6.18115241]
[1745600367392,1.25797529,607.09,605.29,5.894]
[1745600367791,0.28716781,607.08,605.29,6.18116781]
[1745600368694,1.25797529,607.03,605.29,6.18116781]
[1745600369493,1.25797529,607.03,605.3,0.30313361]
[1745600369693,1.25797529,607.03,605.31,0.30313361]
[1745600369894,1.25797529,607.03,605.3,0.30313361]
[1745600370088,1.25797529,607.03,605.31,0.30313361]
[1745600370289,1.25797529,607.03,605.32,0.30313361]
[1745600370486,1.25797529,607.03,605.33,0.30313361]
[1745600370691,1.25797529,607.03,605.29,1.535]
[1745600370889,0.28717492,607.02,605.3,0.28717492]
[1745600371092,1.25797529,606.88,605.3,0.28717492]
[1745600372495,1.25797529,606.88,605.3,1.59617492]
[1745600372996,0.28717492,607.02,605.3,1.59617492]
[1745600373196,0.28717492,607.02,605.3,4.85717492]
[1745600373388,1.25797529,607.12,605.3,4.57]
[1745600373796,0.28715833,607.11,605.3,4.85715833]
[1745600376501,1.25797529,607.5,605.3,4.57]
[1745600376803,0.28711331,607.1,605.3,4.85711331]
[1745600377001,1.25797529,607.5,605.3,4.85711331]
[1745600377399,1.25797529,607.5,605.31,0.30308758]
[1745600377696,0.28710147,607.49,605.31,0.30308758]
[1745600377900,1.25797529,607.47,605.31,0.30308758]
[1745600378802,1.25797529,607.47,605.3,4.85711331]
[1745600379401,1.25797529,607.47,605.3,4.57]
[1745600379700,0.28710029,607.46,605.3,4.85710029]
[1745600380198,1.25797529,607.29,605.3,4.85710029]
[1745600380698,1.25797529,607.29,605.31,0.30308371]
[1745600381103,1.25797529,607.29,605.3,4.85710029]
[1745600382103,1.25797529,607.29,605.31,0.3030795]
[1745600382804,0.28712161,607.28,605.31,0.3030795]
[1745600385007,0.28712161,607.28,605.32,0.30307102]
[1745600385206,0.28712161,607.28,605.33,0.30307102]
[1745600385406,1.25797529,607.35,605.31,0.30307102]
[1745600385808,0.2871145,607.27,605.31,0.2871145]
[1745600386010,1.25797529,607.3,605.31,0.2871145]
[1745600386812,0.28712042,607.29,605.31,0.2871145]
[1745600388515,1.25797529,607.3,605.3,1.652]
[1745600388716,1.25797529,607.3,605.31,0.30307234]
[1745600388915,0.28712042,607.28,605.31,0.59019276]
[1745600389111,0.28712042,607.28,605.31,0.28712042]
[1745600389413,0.28712042,607.28,605.31,1.69312042]
[1745600389917,0.28712042,607.28,605.31,3.18012042]
[1745600391420,1.25797529,607.54,605.31,2.893]
[1745600391818,0.28709081,607.53,605.31,3.18009081]
[1745600392122,1.25797529,607.44,605.31,3.18009081]
[1745600394119,1.25797529,607.49,605.31,3.18009081]
[1745600394419,1.25797529,607.49,605.31,2.893]
[1745600394823,0.28710147,607.48,605.31,3.18010147]
[1745600395525,0.28710147,607.48,605.31,4.54910147]
[1745600397426,1.25797529,607.73,605.31,4.262]
[1745600397826,0.28707305,607.72,605.31,4.54907305]
[1745600398524,1.25797529,607.67,605.31,4.54907305]
[1745600399026,1.25797529,607.67,605.31,5.91807305]
[1745600400428,1.25797529,607.67,605.31,5.631]
[1745600400620,2.12377208,608.59,605.31,5.631]
[1745600400621,1.25797529,607.55,605.31,5.631]
[1745600400820,1.25797529,607.55,605.31,5.91809673]
[1745600403030,1.25797529,607.55,605.32,0.30312453]
[1745600403232,1.25797529,607.45,605.32,0.30312453]
[1745600403732,0.28712279,607.44,605.31,5.91812279]
[1745600405136,1.25797529,607.02,605.31,5.91812279]
[1745600406437,1.25797529,607.02,605.31,5.631]
[1745600406837,0.28717373,607.01,605.31,5.91817373]
[1745600407637,1.25797529,607.0,605.31,5.91817373]
[1745600409440,1.25797529,607.0,605.31,5.631]
[1745600409840,0.28718914,606.99,605.31,5.91818914]
[1745600412439,1.25797529,607.07,605.31,5.631]
[1745600412846,0.2871844,606.98,605.31,5.9181844]
[1745600413143,1.25797529,607.07,605.31,5.9181844]
[1745600413343,1.25797529,606.99,605.31,5.9181844]
[1745600413838,0.28719388,606.98,605.31,5.9181844]
[1745600415344,1.25797529,606.99,605.31,5.631]
[1745600415646,0.28719388,606.97,605.31,5.91819388]
[1745600417247,0.28719388,606.97,605.31,4.54919388]
[1745600418643,1.25797529,607.11,605.31,4.262]
[1745600418845,0.28717966,606.96,605.31,4.54917966]
[1745600419054,1.25797529,607.11,605.31,4.54917966]
[1745600419351,1.25797529,607.11,605.31,3.14317966]
[1745600419744,0.28717966,607.1,605.31,3.14317966]
[1745600420249,0.28717966,607.1,605.31,1.77417966]
[1745600420449,0.28717966,607.1,605.31,0.28717966]
[1745600421551,0.28717966,607.1,604.49,0.71224204]
[1745600421552,1.25797529,607.23,605.02,1.04405207]
[1745600421744,0.28719506,607.09,605.31,0.28719506]
[1745600421945,1.25797529,607.23,605.03,0.30314267]
[1745600422146,1.25797529,607.23,605.02,1.04405207]
[1745600422347,1.25797529,607.23,605.03,0.30314398]
[1745600422751,0.28719269,607.22,605.03,0.59033667]
[1745600423048,0.28719269,607.22,605.04,0.30314398]
[1745600424049,1.25797529,607.11,605.04,0.30314398]
[1745600424649,1.25797529,607.11,605.05,0.30314398]
[1745600424850,0.28720573,607.1,605.03,0.28720573]
[1745600425149,0.28720573,607.1,605.04,0.30314398]
[1745600427255,1.25797529,606.89,605.11,1.04405207]
[1745600427555,1.25797529,606.89,605.12,0.30314398]
[1745600428949,1.25797529,606.89,605.11,1.04405207]
[1745600429154,1.25797529,606.89,605.12,0.30313024]
[1745600429756,1.25797529,606.95,605.12,0.30313024]
[1745600432252,0.28721284,606.96,605.21,1.04405207]
[1745600432557,0.28721284,606.96,605.22,0.30313024]
[1745600433057,1.25797529,607.11,605.22,0.30313024]
[1745600433257,0.28717018,607.01,605.22,0.30313024]
[1745600433459,1.25797529,607.11,605.22,0.30313024]
[1745600433653,1.25797529,607.11,605.23,0.30309439]
[1745600433856,1.25797529,607.11,605.22,0.30309439]
[1745600434757,0.28716307,607.1,605.22,0.30309439]
[1745600434959,0.28716307,607.1,605.23,1.04405207]
[1745600435259,0.28716307,607.1,605.24,0.30309439]
[1745600436659,1.25797529,607.27,605.24,0.30309439]
[1745600436858,0.28714174,607.09,605.24,0.30309439]
[1745600437052,1.25797529,607.27,605.24,0.30309439]
[1745600437955,0.28714174,607.26,605.24,0.30309439]
[1745600438355,1.25797529,607.2,605.25,0.30309051]
[1745600439760,1.25797529,607.2,605.24,1.04405207]
[1745600439960,1.25797529,607.2,605.25,0.30309199]
[1745600440456,1.25797529,607.2,605.24,1.04405207]
[1745600440762,0.28714174,607.26,605.25,0.30309032]
[1745600440958,0.28714174,607.26,605.26,0.30309032]
[1745600441157,0.28714174,607.26,605.27,0.30309032]
[1745600441356,0.28714174,607.26,605.18,0.28714174]
[1745600441357,0.28714174,607.26,605.19,0.30309032]
[1745600442357,1.25797529,607.32,605.19,0.30309032]
[1745600442562,1.25797529,607.32,605.2,0.30308891]
[1745600442756,1.25797529,607.32,605.16,1.04405207]
[1745600442757,0.28714174,607.31,605.18,0.28714174]
[1745600442961,0.28714174,607.31,605.19,0.30308891]
[1745600443861,0.28714174,607.31,605.18,0.28714174]
[1745600444062,0.28714174,607.31,605.19,0.30309159]
[1745600445465,1.25797529,607.34,605.19,0.30309159]
[1745600445655,1.25797529,607.24,605.21,1.04405207]
[1745600445856,1.25797529,607.24,605.22,0.30309159]
[1745600446361,1.25797529,607.24,605.23,0.30306683]
[1745600446558,1.25797529,607.24,605.22,0.30306683]
[1745600446759,1.25797529,607.24,605.24,0.30306683]
[1745600446957,1.25797529,607.24,605.25,0.30306683]